bitfinex/quotes_BTCUSD_20220731
["timestamp","ask_amount","ask_price","bid_price","bid_amount"]
[1659273665400,0.303999,23715.0,23710.0,0.40225733]
[1659273666085,0.0032033,23712.0,23710.0,0.45325733]
[1659273666324,0.94540311,23710.0,23708.0,0.03680117]
[1659273666579,0.94540311,23710.0,23709.0,0.40725733]
[1659273666805,1.94540311,23710.0,23709.0,0.40225733]
[1659273667940,1.98007627,23710.0,23709.0,0.47725733]
[1659273668173,1.94540311,23710.0,23709.0,0.47725733]
[1659273668462,1.94540311,23710.0,23709.0,0.78125633]
[1659273668685,1.94540311,23710.0,23709.0,0.47725733]
[1659273669392,2.00183349,23710.0,23709.0,0.39725733]
[1659273669607,1.95588349,23710.0,23709.0,0.40225733]
[1659273669834,1.95588349,23710.0,23709.0,0.53115733]
[1659273670060,1.95588349,23710.0,23709.0,0.61015733]
[1659273670560,1.95588349,23710.0,23709.0,1.24582633]
[1659273670781,1.95495375,23710.0,23709.0,1.24582633]
[1659273671015,1.95495375,23710.0,23709.0,1.21415633]
[1659273671233,1.95495375,23710.0,23709.0,1.13515633]
[1659273671456,1.95563336,23710.0,23709.0,1.13515633]
[1659273671913,1.95563336,23710.0,23709.0,1.21115633]
[1659273672135,1.95563336,23710.0,23709.0,1.18615633]
[1659273672653,1.95563336,23710.0,23709.0,0.78325733]
[1659273672874,1.95563336,23710.0,23709.0,1.21624033]
[1659273673107,1.95563336,23710.0,23709.0,0.18682685]
[1659273673329,1.95563336,23710.0,23709.0,0.49090985]
[1659273673549,1.95563336,23710.0,23709.0,0.54090985]
[1659273674716,1.95563336,23710.0,23709.0,0.79090985]
[1659273676137,2.00158336,23710.0,23709.0,0.431483]
[1659273676375,2.00158336,23710.0,23708.0,0.310774]
[1659273676376,2.00158336,23710.0,23708.0,0.210774]
[1659273676599,2.00065215,23710.0,23708.0,0.21054897]
[1659273676821,2.00038064,23710.0,23709.0,0.304083]
[1659273677052,2.00038064,23710.0,23708.0,0.21054897]
[1659273677287,2.00038064,23710.0,23707.0,0.1774]
[1659273677734,2.00173274,23710.0,23707.0,0.1774]
[1659273677964,2.08173274,23710.0,23708.0,0.304083]
[1659273678200,2.08173274,23710.0,23707.0,0.1774]
[1659273678452,0.13632963,23710.0,23707.0,0.1774]
[1659273678690,0.09037963,23710.0,23708.0,0.304083]
[1659273678934,0.09037963,23710.0,23705.0,1.2452]
[1659273679149,0.09037963,23710.0,23705.0,0.6012]
[1659273679372,0.00687963,23710.0,23709.0,0.40725733]
[1659273679621,0.1,23726.0,23721.0,0.05]
[1659273679843,0.1,23726.0,23725.0,0.1289]
[1659273679844,0.16838,23726.0,23725.0,0.1289]
[1659273680293,0.001,23736.0,23725.0,0.432983]
[1659273680294,0.03163,23734.0,23725.0,0.432983]
[1659273680296,0.03163,23734.0,23725.0,0.84024033]
[1659273680537,0.001,23736.0,23725.0,0.84024033]
[1659273680538,0.335713,23735.0,23732.0,0.1289]
[1659273681002,0.03163,23734.0,23732.0,0.1289]
[1659273681234,0.71141271,23733.0,23732.0,0.1289]
[1659273681737,0.05,23731.0,23727.0,0.1274]
[1659273681968,0.05,23731.0,23718.0,0.03165]
[1659273681969,0.304083,23730.0,23720.0,0.1289]
[1659273682229,0.304083,23730.0,23721.0,0.40725733]
[1659273682230,0.304083,23729.0,23721.0,0.40725733]
[1659273682449,0.74298033,23728.0,23720.0,0.1289]
[1659273682688,0.71126433,23727.0,23720.0,0.1289]
[1659273682930,0.03164,23730.0,23725.0,0.1274]
[1659273683178,0.59637238,23732.0,23721.0,0.40725733]
[1659273683179,0.71126433,23729.0,23721.0,0.40725733]
[1659273683410,0.40725733,23729.0,23728.0,0.1274]
[1659273683641,0.74593749,23729.0,23728.0,0.1274]
[1659273684082,0.82493749,23729.0,23728.0,0.1274]
[1659273684306,0.82493749,23729.0,23725.0,0.1274]
[1659273684538,0.304007,23728.0,23725.0,0.1274]
[1659273684981,0.56593049,23729.0,23725.0,0.1274]
[1659273685238,0.05,23726.0,23725.0,0.1274]
[1659273685434,0.05,23726.0,23719.0,0.1274]
[1659273685435,1.104007,23726.0,23719.0,0.1274]
[1659273685676,0.304007,23725.0,23720.0,0.40725733]
[1659273685895,0.83467316,23726.0,23720.0,0.40725733]
[1659273686186,0.304007,23725.0,23720.0,0.40725733]
[1659273686417,0.91467316,23726.0,23719.0,0.53465733]
[1659273686649,0.91467316,23726.0,23721.0,0.1274]
[1659273687551,0.91467316,23726.0,23721.0,0.1774]
[1659273687923,0.83467316,23726.0,23721.0,0.1774]
[1659273688143,0.91367316,23726.0,23723.0,0.1274]
[1659273688345,0.304007,23725.0,23721.0,0.1289]
[1659273688703,0.304007,23724.0,23721.0,0.1289]
[1659273688938,0.25314067,23719.0,23717.0,0.8841]
[1659273689159,0.25314067,23719.0,23718.0,0.88866433]
[1659273689395,0.25314067,23719.0,23718.0,1.39937933]
[1659273689599,0.25314067,23719.0,23718.0,1.39437933]
[1659273690048,0.29014067,23719.0,23718.0,0.338115]
[1659273690283,0.29014067,23719.0,23718.0,0.642122]
[1659273690943,0.29014067,23719.0,23718.0,0.338115]
[1659273691179,0.29014067,23719.0,23718.0,0.642122]
[1659273691395,1.25314067,23719.0,23718.0,0.642122]
[1659273691848,1.30414067,23719.0,23718.0,0.642122]
[1659273692068,1.30414067,23719.0,23718.0,0.64204535]
[1659273692289,2.33881383,23719.0,23718.0,0.64204535]
[1659273692509,2.33881383,23719.0,23718.0,0.33803835]
[1659273692971,2.30414067,23719.0,23718.0,0.64204535]
[1659273693190,2.25314067,23719.0,23718.0,0.33803835]
[1659273693406,2.25314067,23719.0,23718.0,0.33432611]
[1659273693619,2.25844642,23719.0,23718.0,0.63833311]
[1659273693874,2.33144642,23719.0,23718.0,0.63833311]
[1659273694122,2.3305157,23719.0,23718.0,0.42761811]
[1659273694343,2.66919586,23719.0,23714.0,0.210756]
[1659273694576,0.38568471,23718.0,23711.0,0.1274]
[1659273694791,0.38568471,23718.0,23712.0,0.00014991]
[1659273694792,0.40725733,23717.0,23712.0,0.00014991]
[1659273695011,0.304007,23716.0,23712.0,0.00014991]
[1659273695230,0.304007,23715.0,23712.0,0.00014991]
[1659273695544,1.03167771,23713.0,23710.0,0.0312902]
[1659273695705,0.08167771,23711.0,23710.0,0.0312902]
[1659273695927,1.29294204,23711.0,23710.0,0.0312902]
[1659273696382,0.92035787,23711.0,23710.0,0.0312902]
[1659273696625,1.3276152,23711.0,23710.0,0.0312902]
[1659273696855,2.3276152,23711.0,23710.0,0.0312902]
[1659273697321,3.3276152,23711.0,23710.0,0.0312902]
[1659273697571,4.3276152,23711.0,23710.0,0.0312902]
[1659273697798,4.33531699,23711.0,23710.0,0.0312902]
[1659273698016,4.37331699,23711.0,23710.0,0.0312902]
[1659273698477,0.08167771,23708.0,23700.0,1.5004631]
[1659273698722,0.05,23701.0,23700.0,1.09304]
[1659273698975,0.05,23701.0,23699.0,6.011e-05]
[1659273698976,0.79294204,23701.0,23699.0,6.011e-05]
[1659273699211,0.82462204,23700.0,23699.0,6.011e-05]
[1659273699445,0.01832229,23695.0,23690.0,0.04469166]
[1659273699668,0.01832229,23695.0,23690.0,0.130901]
[1659273699894,0.42557962,23695.0,23690.0,0.002001]
[1659273700126,0.40725733,23694.0,23690.0,0.002001]
[1659273700345,0.01832229,23695.0,23690.0,0.002001]
[1659273700346,0.44193049,23693.0,23690.0,0.002001]
[1659273700628,0.08065663,23689.0,23688.0,0.04169385]
[1659273700865,0.08065663,23689.0,23688.0,0.16909385]
[1659273701103,0.0024046,23695.0,23688.0,0.57635118]
[1659273701355,0.0024046,23695.0,23690.0,0.1289]
[1659273701828,0.0434046,23695.0,23690.0,0.1289]
[1659273702268,0.0434046,23695.0,23690.0,0.58615733]
[1659273702486,0.0434046,23695.0,23693.0,0.1289]
[1659273702710,0.0434046,23695.0,23694.0,0.45725733]
[1659273702927,0.041,23695.0,23694.0,1.06126433]
[1659273703214,0.2499,23701.0,23694.0,1.16126433]
[1659273703463,0.2499,23701.0,23695.0,0.53615733]
[1659273703688,0.40725733,23700.0,23694.0,0.15]
[1659273703921,0.354007,23699.0,23694.0,0.05]
[1659273704161,1.0,23695.0,23689.0,0.7901]
[1659273704384,1.40725733,23695.0,23689.0,0.1274]
[1659273704609,1.0,23695.0,23689.0,0.53465733]
[1659273704818,1.0,23695.0,23690.0,0.71126433]
[1659273705036,1.0,23695.0,23691.0,0.40725733]
[1659273705304,1.0,23695.0,23691.0,0.53465733]
[1659273705522,1.0,23695.0,23692.0,0.354007]
[1659273705523,0.03467316,23694.0,23692.0,0.354007]
[1659273705761,1.0,23695.0,23693.0,0.05]
[1659273705990,1.044,23695.0,23693.0,0.05]
[1659273706210,1.04301144,23695.0,23694.0,0.1289]
[1659273706441,1.04301144,23695.0,23693.0,0.45725733]
[1659273706663,1.04301144,23695.0,23693.0,0.40725733]
[1659273706914,1.04301144,23695.0,23693.0,0.45725733]
[1659273707141,0.99901144,23695.0,23693.0,0.50725733]
[1659273707366,1.00666178,23695.0,23694.0,0.05]
[1659273707612,1.04133494,23695.0,23693.0,0.2289]
[1659273707824,1.09733494,23695.0,23693.0,0.1789]
[1659273708053,1.09733494,23695.0,23691.0,0.1789]
[1659273708284,1.06266178,23695.0,23692.0,0.40725733]
[1659273708502,1.06266178,23695.0,23693.0,0.604007]
[1659273708725,1.06266178,23695.0,23694.0,0.82219633]
[1659273708952,1.06266178,23695.0,23694.0,1.21219633]
[1659273709201,1.00666178,23695.0,23694.0,1.21219633]
[1659273710550,0.00765034,23695.0,23694.0,1.21219633]
[1659273711269,0.00765034,23695.0,23694.0,0.327539]
[1659273711496,0.00765034,23695.0,23690.0,0.09]
[1659273711727,0.00765034,23695.0,23692.0,0.09]
[1659273711949,0.08472027,23695.0,23694.0,0.14]
[1659273712187,0.08554808,23695.0,23694.0,0.14]
[1659273712406,0.08554808,23695.0,23694.0,0.85126433]
[1659273713166,0.00754808,23695.0,23694.0,1.15126433]
[1659273713657,0.2399,23701.0,23695.0,0.00224]
[1659273713883,0.2399,23701.0,23700.0,1.1475]
[1659273714122,0.2399,23701.0,23700.0,1.85867833]
[1659273714362,0.2399,23701.0,23700.0,2.20867833]
[1659273714583,0.2399,23701.0,23700.0,2.25867833]
[1659273715046,0.3640972,23714.0,23703.0,0.09]
[1659273715275,0.3640972,23714.0,23702.0,0.1]
[1659273715276,0.40725733,23714.0,23708.0,0.09]
[1659273715504,0.304007,23713.0,23708.0,0.09]
[1659273715737,0.40725733,23714.0,23709.0,0.09]
[1659273715738,0.304007,23712.0,23709.0,0.09]
[1659273715970,0.304007,23711.0,23709.0,0.09]
[1659273716194,0.03467316,23711.0,23709.0,0.09]
[1659273716632,0.304007,23710.0,23709.0,0.08938924]
[1659273716878,0.03467316,23711.0,23709.0,0.08938924]
[1659273717777,0.03166,23715.0,23710.0,0.08938924]
[1659273718010,0.079,23711.0,23710.0,0.08938924]
[1659273718236,0.079,23711.0,23710.0,0.09262533]
[1659273718525,0.11367316,23711.0,23710.0,0.08576791]
[1659273718692,0.383081,23711.0,23710.0,0.08576791]
[1659273718905,0.079,23711.0,23710.0,0.08576791]
[1659273719376,0.76133833,23711.0,23710.0,0.08576791]
[1659273719607,0.8908019,23711.0,23710.0,0.08576791]
[1659273719851,0.9371419,23711.0,23710.0,0.08576791]
[1659273720299,0.87449842,23711.0,23710.0,0.08576791]
[1659273720750,0.90615842,23711.0,23710.0,0.08576791]
[1659273720983,0.05,23710.0,23700.0,0.05]
[1659273721206,0.05,23710.0,23699.0,0.00021424]
[1659273721207,0.05,23704.0,23699.0,0.00021424]
[1659273721433,0.05,23701.0,23699.0,0.00021424]
[1659273721651,0.38473763,23700.0,23699.0,0.00021424]
[1659273722101,0.38473763,23700.0,23694.0,0.644]
[1659273722360,0.08065663,23700.0,23695.0,0.40725733]
[1659273723243,0.38473763,23700.0,23695.0,0.40725733]
[1659273723463,0.08065663,23700.0,23695.0,0.40725733]
[1659273723927,0.15965663,23700.0,23695.0,0.40725733]
[1659273724137,0.30305191,23699.0,23694.0,0.40725733]
[1659273724367,0.16421878,23700.0,23694.0,0.40725733]
[1659273724611,0.304147,23699.0,23694.0,0.40725733]
[1659273724831,0.16421878,23700.0,23694.0,0.40725733]
[1659273725266,0.08521878,23700.0,23694.0,0.40725733]
[1659273725709,0.08521878,23700.0,23695.0,0.3]
[1659273725939,0.16421878,23700.0,23696.0,0.40725733]
[1659273726150,0.03467316,23699.0,23696.0,0.50725733]
[1659273726410,0.03467316,23699.0,23696.0,0.40725733]
[1659273726847,0.03467316,23699.0,23695.0,0.40725733]
[1659273727075,0.16421878,23700.0,23695.0,0.40725733]
[1659273727293,0.00456215,23700.0,23695.0,0.40725733]
[1659273727755,0.304147,23699.0,23695.0,0.40725733]
[1659273727983,0.03467316,23698.0,23695.0,0.40725733]
[1659273728216,0.09956215,23700.0,23693.0,0.40725733]
[1659273728933,0.50681948,23700.0,23693.0,0.40725733]
[1659273729156,0.50681948,23700.0,23690.0,0.40725733]
[1659273729157,0.05,23697.0,23690.0,0.40725733]
[1659273729381,0.40725733,23696.0,23689.0,0.40725733]
[1659273729613,0.05,23694.0,23688.0,0.04169385]
[1659273729833,0.76140433,23694.0,23689.0,0.05]
[1659273730103,0.304147,23693.0,23690.0,0.40725733]
[1659273730327,0.039,23696.0,23692.0,0.1287]
[1659273730562,0.03796977,23696.0,23692.0,0.1287]
[1659273730777,0.33882016,23695.0,23691.0,0.00016192]
[1659273731009,0.03467316,23695.0,23691.0,0.40741925]
[1659273731230,0.5637,23698.0,23691.0,0.45741925]
[1659273731446,0.304147,23697.0,23691.0,0.45741925]
[1659273731676,0.97095733,23698.0,23691.0,0.45741925]
[1659273731900,0.0023889,23693.0,23691.0,0.45741925]
[1659273732114,0.0023889,23693.0,23689.0,0.05]
[1659273732115,0.03706206,23693.0,23689.0,0.05]
[1659273732371,0.0023889,23693.0,23690.0,0.354147]
[1659273732646,0.0023889,23693.0,23690.0,0.05]
[1659273732882,0.0023889,23693.0,23691.0,0.76140433]
[1659273733096,0.0023889,23693.0,23690.0,0.128]
[1659273733097,0.03467316,23693.0,23690.0,0.128]
[1659273733314,0.03467316,23693.0,23689.0,0.05]
[1659273733534,0.03467316,23693.0,23689.0,0.50725733]
[1659273733749,0.03467316,23693.0,23690.0,0.304147]
[1659273734017,0.00468921,23695.0,23689.0,0.40725733]
[1659273735360,0.00468921,23695.0,23690.0,0.354147]
[1659273735582,0.00468921,23695.0,23690.0,0.40725733]
[1659273735797,0.00468921,23695.0,23690.0,0.66820033]
[1659273736017,0.02568921,23695.0,23690.0,0.71820033]
[1659273736269,0.02568921,23695.0,23690.0,0.61820033]
[1659273736521,0.0247567,23695.0,23690.0,0.40725733]
[1659273736964,0.02583474,23695.0,23690.0,0.40725733]
[1659273737175,0.00483474,23695.0,23690.0,0.40725733]
[1659273737664,0.40725733,23694.0,23688.0,0.04169385]
[1659273737888,0.00483474,23695.0,23689.0,0.45725733]
[1659273737889,0.01283474,23695.0,23689.0,0.45725733]
[1659273738784,0.304147,23694.0,23689.0,0.45725733]
[1659273739045,0.01283474,23695.0,23689.0,0.45725733]
[1659273739270,0.00483474,23695.0,23689.0,0.45725733]
[1659273739507,0.00483474,23695.0,23689.0,0.50725733]
[1659273739956,0.08383474,23695.0,23689.0,0.50725733]
[1659273740640,0.08383474,23695.0,23689.0,0.45725733]
[1659273740855,0.45725733,23694.0,23689.0,0.05]
[1659273741076,0.40725733,23694.0,23689.0,0.05]
[1659273741278,0.40725733,23694.0,23688.0,0.04169385]
[1659273741694,0.41209207,23695.0,23689.0,0.05]
[1659273741905,0.079,23694.0,23689.0,0.05]
[1659273743260,0.6611261,23692.0,23689.0,0.1]
[1659273743479,0.6611261,23692.0,23688.0,0.40925733]
[1659273743480,0.65995159,23692.0,23688.0,0.40925733]
[1659273743702,0.65995159,23692.0,23688.0,0.45925733]
[1659273743963,0.73895159,23692.0,23688.0,0.45925733]
[1659273744425,0.73895159,23692.0,23689.0,0.91821333]
[1659273744656,0.73895159,23692.0,23691.0,0.228]
[1659273744883,0.73895159,23692.0,23691.0,0.767463]
[1659273745385,0.65995159,23692.0,23691.0,0.467463]
[1659273745621,0.65995159,23692.0,23691.0,0.767463]
[1659273746086,0.73895159,23692.0,23691.0,1.17472033]
[1659273746303,0.73895159,23692.0,23691.0,1.22472033]
[1659273747443,0.65995159,23692.0,23691.0,0.417463]
[1659273747669,0.65995159,23692.0,23688.0,0.1314]
[1659273747946,0.65995159,23692.0,23689.0,0.40725733]
[1659273748154,0.65995159,23692.0,23690.0,0.239513]
[1659273748376,0.65995159,23692.0,23691.0,0.304095]
[1659273748589,0.65995159,23692.0,23690.0,0.40725733]
[1659273749557,0.65896842,23692.0,23690.0,0.40725733]
[1659273749780,0.69364158,23692.0,23690.0,0.40725733]
[1659273749999,0.75964158,23692.0,23690.0,0.40725733]
[1659273750471,0.72496842,23692.0,23690.0,0.40725733]
[1659273750698,0.75964158,23692.0,23690.0,0.40725733]
[1659273750942,0.72496842,23692.0,23690.0,0.40725733]
[1659273751419,0.65896842,23692.0,23689.0,0.40725733]
[1659273752766,0.03467316,23691.0,23689.0,0.40725733]
[1659273752993,0.65896842,23692.0,23689.0,0.40725733]
[1659273753245,0.65896842,23692.0,23690.0,0.00043339]
[1659273753695,0.65896842,23692.0,23690.0,0.12843339]
[1659273753946,0.00216399,23691.0,23690.0,0.12843339]
[1659273754162,0.01480747,23691.0,23690.0,0.11578991]
[1659273754401,0.01480747,23691.0,23690.0,0.41993691]
[1659273754631,0.01480747,23691.0,23690.0,0.40729343]
[1659273754848,0.01480747,23691.0,23690.0,0.70729343]
[1659273755080,0.63663178,23692.0,23691.0,1.1]
[1659273755313,0.14979339,23700.0,23692.0,0.63663]
[1659273755572,0.14979339,23700.0,23697.0,0.1787]
[1659273755865,0.14979339,23700.0,23698.0,0.239382]
[1659273756113,0.14979339,23700.0,23699.0,0.05]
[1659273756336,0.14979339,23700.0,23699.0,0.45725733]
[1659273757473,0.14979339,23700.0,23699.0,0.40725733]
[1659273757919,0.15437237,23700.0,23699.0,0.48625733]
[1659273758867,0.20032237,23700.0,23699.0,0.079]
[1659273759097,0.50446937,23700.0,23699.0,0.079]
[1659273759326,0.50446937,23700.0,23693.0,0.6044]
[1659273759563,0.20032237,23700.0,23695.0,0.00011759]
[1659273759793,0.20032237,23700.0,23696.0,0.40725733]
[1659273760500,0.304147,23699.0,23695.0,0.40725733]
[1659273760729,0.15437237,23700.0,23695.0,0.40725733]
[1659273760730,0.33705655,23698.0,23695.0,0.40725733]
[1659273761016,0.45851937,23700.0,23693.0,0.48537493]
[1659273761017,0.304147,23697.0,23693.0,0.48537493]
[1659273761245,0.15437237,23700.0,23693.0,0.0781176]
[1659273761246,0.08065663,23696.0,23693.0,0.0781176]
[1659273761489,0.51959396,23696.0,23693.0,0.0001176]
[1659273761717,0.53065663,23694.0,23693.0,0.0001176]
[1659273761950,0.83480363,23694.0,23688.0,0.002]
[1659273762187,0.53065663,23694.0,23688.0,0.002]
[1659273762659,0.71140433,23693.0,23688.0,0.002]
[1659273762932,0.71140433,23692.0,23685.0,0.58361007]
[1659273763176,0.40725733,23692.0,23685.0,0.9908674]
[1659273763399,0.43894733,23694.0,23686.0,0.40725733]
[1659273763701,0.40725733,23694.0,23686.0,0.74132983]
[1659273763936,0.5894,23695.0,23688.0,0.158]
[1659273764154,0.99665733,23695.0,23688.0,0.89932983]
[1659273764376,0.99665733,23695.0,23688.0,0.66525733]
[1659273764615,0.59222082,23699.0,23689.0,0.40725733]
[1659273764913,1.14082082,23699.0,23692.0,0.128]
[1659273765129,1.14082082,23699.0,23694.0,0.128]
[1659273765360,0.55332082,23699.0,23694.0,0.128]
[1659273765818,0.304147,23698.0,23694.0,0.128]
[1659273766041,0.63132082,23699.0,23694.0,0.128]
[1659273766271,0.00473402,23695.0,23690.0,0.5120725]
[1659273766494,0.00473402,23695.0,23691.0,0.304147]
[1659273766714,0.0037533,23695.0,23692.0,0.240367]
[1659273766928,0.0037533,23695.0,23692.0,0.40725733]
[1659273767150,0.02,23697.0,23692.0,0.40725733]
[1659273768107,0.02,23697.0,23692.0,0.48525733]
[1659273769264,0.02,23697.0,23690.0,0.338943]
[1659273769494,0.02,23697.0,23691.0,0.40725733]
[1659273771391,0.02,23697.0,23692.0,0.304147]
[1659273771724,0.02,23697.0,23691.0,0.40725733]
[1659273771954,0.02,23697.0,23691.0,0.48525733]
[1659273772416,0.02,23694.0,23691.0,0.078]
[1659273772691,0.08065663,23692.0,23691.0,0.07774941]
[1659273772943,0.38480363,23692.0,23691.0,0.07774941]
[1659273773176,0.09972542,23692.0,23691.0,0.07774941]
[1659273773415,0.81112975,23692.0,23683.0,0.13291534]
[1659273773642,1.05068275,23692.0,23684.0,0.40725733]
[1659273773868,1.05068275,23692.0,23685.0,0.26632544]
[1659273774087,0.64812066,23692.0,23691.0,0.079]
[1659273774314,0.84751499,23692.0,23691.0,0.079]
[1659273774765,0.81582499,23692.0,23691.0,0.079]
[1659273774987,0.84751499,23692.0,23691.0,0.079]
[1659273775282,0.00469524,23692.0,23691.0,0.079]
[1659273775510,0.00469524,23692.0,23689.0,0.128]
[1659273775731,0.00469524,23692.0,23689.0,0.53525733]
[1659273775973,0.00469524,23692.0,23691.0,0.079]
[1659273777146,0.00469524,23692.0,23691.0,0.07907754]
[1659273777370,0.00469524,23692.0,23691.0,7.754e-05]
[1659273778051,0.00469524,23692.0,23689.0,0.74620533]
[1659273778052,0.00469524,23692.0,23691.0,0.079]
[1659273778527,0.00371468,23692.0,23691.0,0.079]
[1659273779272,0.00469524,23692.0,23689.0,0.53525733]
[1659273779499,0.00469524,23692.0,23690.0,0.304147]
[1659273779728,0.00469524,23692.0,23691.0,0.05]
[1659273780205,0.00469524,23692.0,23689.0,0.079]
[1659273780475,0.03980179,23692.0,23689.0,0.079]
[1659273780715,0.03980179,23692.0,23690.0,0.71140433]
[1659273780716,0.00469524,23692.0,23690.0,0.71140433]
[1659273780953,0.00469524,23692.0,23691.0,0.05]
[1659273781658,0.00469524,23692.0,23689.0,0.53525733]
[1659273781887,0.00469524,23692.0,23691.0,0.05]
[1659273782123,0.00469524,23692.0,23691.0,0.105]
[1659273782832,0.03980179,23692.0,23691.0,0.105]
[1659273783139,0.00469524,23692.0,23691.0,0.055]
[1659273783364,0.00469524,23692.0,23689.0,0.40725733]
[1659273783817,0.00469524,23692.0,23688.0,0.40725733]
[1659273784039,0.00469524,23692.0,23689.0,0.079]
[1659273784264,0.00469524,23692.0,23691.0,0.05]
[1659273784265,0.0037642,23692.0,23691.0,0.05]
[1659273785254,0.00089018,23692.0,23691.0,0.05]
[1659273785937,0.00089018,23692.0,23691.0,0.129]
[1659273786393,0.00261633,23692.0,23691.0,0.129]
[1659273786618,0.03772288,23692.0,23691.0,0.079]
[1659273787131,0.00261633,23692.0,23691.0,0.079]
[1659273787341,0.00261633,23692.0,23690.0,7.813e-05]
[1659273788017,0.00261633,23692.0,23690.0,0.07907813]
[1659273788315,0.00261633,23692.0,23691.0,0.05]
[1659273789015,6.33e-06,23692.0,23691.0,1.22347683]
[1659273789240,6.33e-06,23692.0,23691.0,1.56165847]
[1659273789962,0.14979339,23700.0,23699.0,1.03818164]
[1659273790190,0.14979339,23700.0,23699.0,2.20228897]
[1659273790432,0.14979339,23700.0,23699.0,1.83085995]
[1659273790668,0.14876349,23700.0,23699.0,0.79267831]
[1659273790945,0.14876349,23700.0,23699.0,0.3727775]
[1659273791178,0.14876349,23700.0,23699.0,0.2324825]
[1659273791415,0.14876349,23700.0,23699.0,0.7727765]
[1659273791640,0.14876349,23700.0,23699.0,0.3727765]
[1659273791866,0.14876349,23700.0,23699.0,0.58973983]
[1659273792305,0.14876349,23700.0,23699.0,1.15203283]
[1659273792531,0.14876349,23700.0,23699.0,1.48610533]
[1659273792747,0.14876349,23700.0,23699.0,1.15203283]
[1659273793215,0.14876349,23700.0,23699.0,1.57428697]
[1659273793460,0.14876349,23700.0,23699.0,1.21821447]
[1659273793908,6.535e-05,23712.0,23700.0,0.1294]
[1659273794138,6.535e-05,23712.0,23708.0,0.1287]
[1659273794359,0.001,23714.0,23709.0,0.00026321]
[1659273794622,0.40825733,23714.0,23709.0,0.00026321]
[1659273795320,0.001,23714.0,23709.0,0.40752054]
[1659273795549,0.001,23714.0,23713.0,0.1287]
[1659273795803,0.001,23714.0,23710.0,0.40725733]
[1659273796066,0.01181836,23713.0,23705.0,0.1287]
[1659273796302,0.01181836,23713.0,23706.0,0.40725733]
[1659273796535,0.01083796,23713.0,23706.0,0.40725733]
[1659273796760,0.01083796,23713.0,23706.0,0.73781013]
[1659273796994,0.01083796,23713.0,23707.0,0.40725733]
[1659273797692,0.00583796,23713.0,23707.0,0.40725733]
[1659273797945,0.00583796,23713.0,23707.0,0.41425733]
[1659273798174,0.00583796,23713.0,23707.0,0.40725733]
[1659273798175,0.304147,23712.0,23707.0,0.40725733]
[1659273798428,0.00452473,23713.0,23705.0,0.40725733]
[1659273798728,0.40725733,23712.0,23705.0,0.40725733]
[1659273798953,0.43891733,23712.0,23704.0,0.40725733]
[1659273799200,0.40725733,23711.0,23704.0,0.40725733]
[1659273799434,0.00583796,23708.0,23704.0,0.40725733]
[1659273799680,0.00583796,23705.0,23698.0,0.3834]
[1659273799948,0.41309529,23705.0,23698.0,0.79065733]
[1659273800145,0.41309529,23705.0,23698.0,0.40725733]
[1659273800397,0.00583796,23702.0,23696.0,0.766]
[1659273800618,0.00583796,23702.0,23696.0,0.638]
[1659273801982,0.40725733,23704.0,23697.0,0.5845]
[1659273802241,0.00450639,23702.0,23697.0,0.5845]
[1659273802500,0.08065663,23701.0,23697.0,0.6345]
[1659273802742,0.00349398,23702.0,23697.0,0.5845]
[1659273802980,0.08065663,23701.0,23697.0,0.01]
[1659273803194,0.00583796,23699.0,23697.0,0.01]
[1659273803433,0.41309529,23699.0,23693.0,0.62276]
[1659273803655,0.41309529,23699.0,23694.0,0.304147]
[1659273803970,0.41309529,23699.0,23697.0,0.079]
[1659273805352,0.304147,23698.0,23693.0,0.67276]
[1659273805580,0.00583796,23696.0,23693.0,0.62276]
[1659273805819,0.00083796,23696.0,23694.0,0.00024123]
[1659273807024,0.03594451,23696.0,23693.0,0.65476]
[1659273807259,0.03594451,23696.0,23693.0,6e-05]
[1659273807260,0.00083796,23694.0,23693.0,6e-05]
[1659273807486,0.44236388,23696.0,23693.0,6e-05]
[1659273807487,0.40725733,23696.0,23693.0,6e-05]
[1659273807989,0.40725733,23696.0,23693.0,0.07906]
[1659273808444,0.40725733,23697.0,23693.0,0.07906]
[1659273808686,0.55574329,23699.0,23693.0,0.07906]
[1659273808895,0.304147,23698.0,23693.0,0.07906]
[1659273809135,0.96200405,23699.0,23693.0,0.07906]
[1659273809360,0.304147,23698.0,23693.0,6e-05]
[1659273809602,0.96200405,23699.0,23693.0,6e-05]
[1659273809825,0.00182842,23695.0,23693.0,6e-05]
[1659273810784,0.079,23698.0,23694.0,0.00049962]
[1659273810785,0.00257088,23697.0,23694.0,0.00049962]
[1659273811233,0.03767743,23697.0,23694.0,0.00049962]
[1659273811470,0.00257088,23697.0,23694.0,0.00049962]
[1659273811920,0.00257088,23697.0,23694.0,0.42375695]
[1659273812165,0.00257088,23697.0,23694.0,0.65245695]
[1659273812379,0.00257088,23697.0,23696.0,0.05]
[1659273812842,0.00257088,23697.0,23696.0,0.63525733]
[1659273813062,0.00257088,23697.0,23696.0,1.23940433]
[1659273813749,0.00257088,23697.0,23696.0,0.88940433]
[1659273813983,0.00257088,23697.0,23696.0,0.183]
[1659273814261,0.00168852,23697.0,23696.0,0.183]
[1659273814702,0.00239949,23697.0,23696.0,0.95704781]
[1659273814922,0.00239949,23697.0,23696.0,1.25704781]
[1659273815142,0.00239949,23697.0,23696.0,1.25839114]
[1659273815372,0.00239949,23697.0,23696.0,1.20339114]
[1659273816081,0.00239949,23697.0,23696.0,1.26139114]
[1659273816800,0.00239949,23697.0,23696.0,1.2619146]
[1659273817248,0.00239949,23697.0,23696.0,1.2039146]
[1659273817904,0.00239949,23697.0,23696.0,1.19127112]
[1659273818142,0.00239949,23697.0,23696.0,1.27127112]
[1659273818837,0.00239949,23697.0,23696.0,0.97127112]
[1659273819076,0.00239949,23697.0,23696.0,0.92127112]
[1659273819296,0.00239949,23697.0,23696.0,0.84127112]
[1659273819819,0.00147711,23697.0,23696.0,0.84127112]
[1659273820035,0.00147711,23697.0,23696.0,0.88927112]
[1659273820263,0.00147711,23697.0,23696.0,1.23927112]
[1659273820487,0.0027347,23697.0,23696.0,1.23927112]
[1659273821434,0.0027347,23697.0,23696.0,1.19127112]
[1659273821657,0.0027347,23697.0,23696.0,1.2039146]
[1659273822125,0.0027347,23697.0,23696.0,1.2519146]
[1659273822837,0.31400812,23705.0,23697.0,0.05]
[1659273823055,0.40725733,23705.0,23699.0,0.210879]
[1659273823332,0.304147,23704.0,23699.0,0.210879]